[Event "Early-Titled-Tuesday-Blitz-October-17-2023"]
[Site "Chess.com"]
[Date "2023.10.17"]
[Round "1"]
[White "KVAIDAN"]
[Black "ChessRespected"]
[Result "0-1"]
[WhiteElo "2258"]
[BlackElo "2591"]
[TimeControl "180+1"]
[EndTime "8:05:27 PDT"]
[Termination "ChessRespected won by checkmate"]

1. f4 {[%clk 0:02:41.7]} 1... d5 {[%clk 0:02:58.6]} 2. Nf3 {[%clk 0:02:41.5]}
2... Nc6 {[%clk 0:02:53.4]} 3. e3 {[%clk 0:02:41.4]} 3... Bg4 {[%clk 0:02:52.9]}
4. Bb5 {[%clk 0:02:41.4]} 4... e6 {[%clk 0:02:47.8]} 5. b3 {[%clk 0:02:40.9]}
5... Ne7 {[%clk 0:02:47.4]} 6. Bb2 {[%clk 0:02:40.7]} 6... a6 {[%clk 0:02:47.7]}
7. Bxc6+ {[%clk 0:02:38.8]} 7... Nxc6 {[%clk 0:02:48.6]} 8. h3 {[%clk
0:02:39.2]} 8... Bh5 {[%clk 0:02:44.7]} 9. Nc3 {[%clk 0:02:34.2]} 9... Bc5
{[%clk 0:02:38.7]} 10. Qe2 {[%clk 0:02:33.7]} 10... d4 {[%clk 0:02:32.8]} 11.
Ne4 {[%clk 0:02:31.7]} 11... Ba7 {[%clk 0:02:32.4]} 12. O-O-O {[%clk 0:02:31]}
12... d3 {[%clk 0:02:27.2]} 13. Qxd3 {[%clk 0:02:22]} 13... Qxd3 {[%clk
0:02:25.6]} 14. cxd3 {[%clk 0:02:22.2]} 14... Bxf3 {[%clk 0:02:20.3]} 15. gxf3
{[%clk 0:02:21.2]} 15... Nb4 {[%clk 0:02:09.1]} 16. Bxg7 {[%clk 0:02:20.5]}
16... Rg8 {[%clk 0:01:58]} 17. Nf6+ {[%clk 0:02:19.4]} 17... Ke7 {[%clk
0:01:58.3]} 18. Nxg8+ {[%clk 0:02:18.6]} 18... Rxg8 {[%clk 0:01:59.2]} 19. Rhg1
{[%clk 0:02:11.1]} 19... Nxd3+ {[%clk 0:01:56.2]} 20. Kb1 {[%clk 0:02:11]} 20...
Rd8 {[%clk 0:01:32.9]} 21. Bh6 {[%clk 0:02:05.3]} 21... Nf2 {[%clk 0:01:29.2]}
22. Rdf1 {[%clk 0:01:55]} 22... Rxd2 {[%clk 0:01:28.6]} 23. Rg2 {[%clk
0:01:51.6]} 23... Bxe3 {[%clk 0:01:28.1]} 24. Bg5+ {[%clk 0:01:48.8]} 24... f6
{[%clk 0:01:26.6]} 25. Bh4 {[%clk 0:01:49]} 25... Ne4 {[%clk 0:01:20.2]} 26.
fxe4 {[%clk 0:01:32.9]} 26... Rxg2 {[%clk 0:01:19.2]} 27. e5 {[%clk 0:01:33.5]}
27... Bd4 {[%clk 0:01:15.3]} 28. Rd1 {[%clk 0:01:30.8]} 28... c5 {[%clk
0:01:15]} 29. b4 {[%clk 0:01:30.2]} 29... Rb2+ {[%clk 0:01:07.9]} 30. Kc1 {[%clk
0:01:29.8]} 30... Rxb4 {[%clk 0:01:06.8]} 31. Bxf6+ {[%clk 0:01:24]} 31... Kf7
{[%clk 0:01:05.1]} 32. h4 {[%clk 0:01:21.4]} 32... h5 {[%clk 0:01:04.3]} 33. Rd3
{[%clk 0:01:19.7]} 33... Kg6 {[%clk 0:01:01.7]} 34. Rg3+ {[%clk 0:01:18.5]}
34... Kf5 {[%clk 0:01:01.8]} 35. Rg5+ {[%clk 0:01:18.8]} 35... Ke4 {[%clk
0:01:00.8]} 36. Rxh5 {[%clk 0:01:19.1]} 36... Kd3 {[%clk 0:01:00.7]} 37. f5
{[%clk 0:01:13.4]} 37... Be3+ {[%clk 0:01:00.7]} 38. Kd1 {[%clk 0:01:11.4]}
38... Rb1# {[%clk 0:01:00.7]} 0-1

[Event "Early-Titled-Tuesday-Blitz-October-17-2023"]
[Site "Chess.com"]
[Date "2023.10.17"]
[Round "1"]
[White "CristianS27"]
[Black "DrVelja"]
[Result "1-0"]
[WhiteElo "2513"]
[BlackElo "2841"]
[TimeControl "180+1"]
[EndTime "8:05:33 PDT"]
[Termination "CristianS27 won by resignation"]

1. e4 {[%clk 0:02:58]} 1... c5 {[%clk 0:02:57.7]} 2. Nf3 {[%clk 0:02:57.9]} 2...
Nc6 {[%clk 0:02:51.4]} 3. d4 {[%clk 0:02:53.9]} 3... cxd4 {[%clk 0:02:51.2]} 4.
Nxd4 {[%clk 0:02:54.8]} 4... Nf6 {[%clk 0:02:51.3]} 5. Nc3 {[%clk 0:02:55.4]}
5... e5 {[%clk 0:02:51.7]} 6. Ndb5 {[%clk 0:02:55.9]} 6... d6 {[%clk 0:02:52.3]}
7. Bg5 {[%clk 0:02:55.9]} 7... a6 {[%clk 0:02:53]} 8. Na3 {[%clk 0:02:56.5]}
8... b5 {[%clk 0:02:53.9]} 9. Bxf6 {[%clk 0:02:57.2]} 9... gxf6 {[%clk
0:02:54.8]} 10. Nd5 {[%clk 0:02:58.1]} 10... Bg7 {[%clk 0:02:52.6]} 11. g3
{[%clk 0:02:59]} 11... Ne7 {[%clk 0:02:43.7]} 12. Nxe7 {[%clk 0:02:55.3]} 12...
Qxe7 {[%clk 0:02:44.6]} 13. Bg2 {[%clk 0:02:55.8]} 13... Be6 {[%clk 0:02:16.7]}
14. c3 {[%clk 0:02:53.8]} 14... Rd8 {[%clk 0:02:15.1]} 15. Nc2 {[%clk
0:02:53.4]} 15... f5 {[%clk 0:02:13.1]} 16. exf5 {[%clk 0:02:51]} 16... Bxf5
{[%clk 0:02:14]} 17. Ne3 {[%clk 0:02:51.6]} 17... Be6 {[%clk 0:02:14.3]} 18. Nd5
{[%clk 0:02:45.7]} 18... Qa7 {[%clk 0:02:12.8]} 19. a4 {[%clk 0:02:40.7]} 19...
Qb8 {[%clk 0:02:08]} 20. axb5 {[%clk 0:02:37.3]} 20... axb5 {[%clk 0:02:08.9]}
21. Ra8 {[%clk 0:02:32.4]} 21... Qxa8 {[%clk 0:02:08.7]} 22. Nc7+ {[%clk
0:02:31.8]} 22... Kd7 {[%clk 0:02:09.3]} 23. Nxa8 {[%clk 0:02:26.3]} 23... Rxa8
{[%clk 0:02:10.2]} 24. Bxa8 {[%clk 0:02:01.2]} 24... Rxa8 {[%clk 0:02:11.1]} 25.
O-O {[%clk 0:02:01.4]} 25... f5 {[%clk 0:01:58.2]} 26. Qh5 {[%clk 0:01:55]}
26... h6 {[%clk 0:01:38.4]} 27. Rd1 {[%clk 0:01:52.2]} 27... Ke7 {[%clk
0:01:37.3]} 28. Qh4+ {[%clk 0:01:41.1]} 28... Kd7 {[%clk 0:01:35.8]} 29. Qb4
{[%clk 0:01:42]} 29... Bf8 {[%clk 0:01:34.6]} 30. Qxb5+ {[%clk 0:01:41.7]} 30...
Kc7 {[%clk 0:01:35.5]} 31. b4 {[%clk 0:01:30.4]} 31... Be7 {[%clk 0:01:26.5]}
32. Qe2 {[%clk 0:01:26]} 32... Ra3 {[%clk 0:01:22.7]} 33. c4 {[%clk 0:01:12.9]}
33... e4 {[%clk 0:01:15.7]} 34. Qb2 {[%clk 0:01:07.5]} 34... Ra8 {[%clk
0:01:06.1]} 35. Qg7 {[%clk 0:01:05.2]} 35... Re8 {[%clk 0:01:06.6]} 36. c5
{[%clk 0:01:01.6]} 1-0

[Event "Early-Titled-Tuesday-Blitz-October-17-2023"]
[Site "Chess.com"]
[Date "2023.10.17"]
[Round "1"]
[White "JuniorJumper"]
[Black "ChesscularGodofchess"]
[Result "1-0"]
[WhiteElo "2562"]
[BlackElo "2182"]
[TimeControl "180+1"]
[EndTime "8:05:39 PDT"]
[Termination "JuniorJumper won by checkmate"]

1. Nf3 {[%clk 0:02:46.2]} 1... Nf6 {[%clk 0:02:59]} 2. g3 {[%clk 0:02:42.3]}
2... d5 {[%clk 0:02:58.1]} 3. Bg2 {[%clk 0:02:43]} 3... c6 {[%clk 0:02:58.6]} 4.
b3 {[%clk 0:02:42.9]} 4... g6 {[%clk 0:02:58.9]} 5. Bb2 {[%clk 0:02:43.8]} 5...
Bg7 {[%clk 0:02:59.6]} 6. O-O {[%clk 0:02:44.2]} 6... O-O {[%clk 0:02:59.7]} 7.
d3 {[%clk 0:02:45.1]} 7... Bg4 {[%clk 0:02:39.2]} 8. Nbd2 {[%clk 0:02:41.9]}
8... Nbd7 {[%clk 0:02:26.7]} 9. h3 {[%clk 0:02:40.6]} 9... Bxf3 {[%clk
0:02:26.8]} 10. Nxf3 {[%clk 0:02:41.5]} 10... Qc7 {[%clk 0:02:24.9]} 11. Re1
{[%clk 0:02:37.9]} 11... e5 {[%clk 0:02:22.4]} 12. e4 {[%clk 0:02:38.2]} 12...
dxe4 {[%clk 0:02:18.1]} 13. dxe4 {[%clk 0:02:38.3]} 13... Rfd8 {[%clk
0:02:17.1]} 14. Qe2 {[%clk 0:02:38.2]} 14... Bf8 {[%clk 0:02:10]} 15. Rad1
{[%clk 0:02:26.1]} 15... Bc5 {[%clk 0:01:55.5]} 16. Rd3 {[%clk 0:02:21.9]} 16...
a5 {[%clk 0:01:46.4]} 17. a3 {[%clk 0:02:16.6]} 17... Ne8 {[%clk 0:01:35.3]} 18.
Red1 {[%clk 0:02:14.3]} 18... f6 {[%clk 0:01:35.5]} 19. Rxd7 {[%clk 0:02:03.5]}
19... Bxf2+ {[%clk 0:01:04.9]} 20. Qxf2 {[%clk 0:01:54.4]} 20... Rxd7 {[%clk
0:01:04.9]} 21. Rxd7 {[%clk 0:01:51.7]} 21... Qxd7 {[%clk 0:01:05.8]} 22. Bf1
{[%clk 0:01:52.3]} 22... b5 {[%clk 0:00:59]} 23. a4 {[%clk 0:01:50.7]} 23... Nc7
{[%clk 0:00:54.9]} 24. axb5 {[%clk 0:01:23.4]} 24... cxb5 {[%clk 0:00:50.5]} 25.
Qb6 {[%clk 0:01:17.5]} 25... Kg7 {[%clk 0:00:47.1]} 26. Nxe5 {[%clk 0:01:13.1]}
26... Qe7 {[%clk 0:00:33.4]} 27. Ng4 {[%clk 0:01:07.4]} 27... Qxe4 {[%clk
0:00:31.2]} 28. Qxf6+ {[%clk 0:01:05.5]} 28... Kg8 {[%clk 0:00:32.1]} 29. Nh6#
{[%clk 0:01:04.8]} 1-0

[Event "Early-Titled-Tuesday-Blitz-October-17-2023"]
[Site "Chess.com"]
[Date "2023.10.17"]
[Round "1"]
[White "Balla_Tamas"]
[Black "Zavgorodniy_Sergiy"]
[Result "0-1"]
[WhiteElo "2402"]
[BlackElo "2678"]
[TimeControl "180+1"]
[EndTime "8:05:41 PDT"]
[Termination "Zavgorodniy_Sergiy won by resignation"]

1. e4 {[%clk 0:03:00.9]} 1... e5 {[%clk 0:02:40]} 2. Nf3 {[%clk 0:03:00.2]} 2...
d6 {[%clk 0:02:39.2]} 3. d4 {[%clk 0:02:57]} 3... exd4 {[%clk 0:02:40.1]} 4.
Nxd4 {[%clk 0:02:57.9]} 4... Nf6 {[%clk 0:02:39.5]} 5. f3 {[%clk 0:02:56.8]}
5... Be7 {[%clk 0:02:37.3]} 6. c4 {[%clk 0:02:55.2]} 6... O-O {[%clk 0:02:36.8]}
7. Nc3 {[%clk 0:02:55.9]} 7... c6 {[%clk 0:02:33.5]} 8. Be3 {[%clk 0:02:56.1]}
8... d5 {[%clk 0:02:29.9]} 9. cxd5 {[%clk 0:02:51.7]} 9... cxd5 {[%clk
0:02:30.8]} 10. e5 {[%clk 0:02:47.1]} 10... Nfd7 {[%clk 0:02:24.3]} 11. e6
{[%clk 0:02:46.3]} 11... Nf6 {[%clk 0:02:20.7]} 12. exf7+ {[%clk 0:02:42.7]}
12... Rxf7 {[%clk 0:02:20.3]} 13. Bd3 {[%clk 0:02:40.2]} 13... Nc6 {[%clk
0:02:19.4]} 14. O-O {[%clk 0:02:39.4]} 14... Bd6 {[%clk 0:02:09.9]} 15. Kh1
{[%clk 0:02:31.8]} 15... a6 {[%clk 0:02:07.1]} 16. Qb3 {[%clk 0:02:24.2]} 16...
Bc7 {[%clk 0:02:02.4]} 17. Nce2 {[%clk 0:02:05.6]} 17... Ne5 {[%clk 0:01:55.3]}
18. Bf5 {[%clk 0:01:57]} 18... Nc4 {[%clk 0:01:49.4]} 19. Bg1 {[%clk 0:01:55.2]}
19... Nd2 {[%clk 0:01:43.6]} 20. Qc3 {[%clk 0:01:45.8]} 20... Nxf1 {[%clk
0:01:43]} 21. Rxf1 {[%clk 0:01:28.1]} 21... Bxf5 {[%clk 0:01:42.5]} 22. Nxf5
{[%clk 0:01:28.4]} 22... Rc8 {[%clk 0:01:42.6]} 23. Qb3 {[%clk 0:01:18]} 23...
Qd7 {[%clk 0:01:37.8]} 24. Ned4 {[%clk 0:01:15.7]} 24... Be5 {[%clk 0:01:34.2]}
25. Re1 {[%clk 0:01:10.8]} 25... Bxd4 {[%clk 0:01:33]} 26. Nxd4 {[%clk
0:01:11.7]} 26... Re7 {[%clk 0:01:30.9]} 27. Rd1 {[%clk 0:01:08.7]} 27... b5
{[%clk 0:01:28.6]} 28. a4 {[%clk 0:01:03.6]} 28... bxa4 {[%clk 0:01:27.7]} 29.
Qb6 {[%clk 0:01:03.9]} 29... Rce8 {[%clk 0:01:25.5]} 30. Qxa6 {[%clk 0:01:03.4]}
30... h6 {[%clk 0:01:24.9]} 31. Nc6 {[%clk 0:01:01]} 31... Re1 {[%clk
0:01:22.7]} 32. Rxe1 {[%clk 0:00:59.2]} 32... Rxe1 {[%clk 0:01:22.3]} 33. Qa8+
{[%clk 0:00:58]} 33... Qe8 {[%clk 0:01:14.4]} 34. Qa7 {[%clk 0:00:47.5]} 34...
Qxc6 {[%clk 0:01:11.2]} 0-1

[Event "Early-Titled-Tuesday-Blitz-October-17-2023"]
[Site "Chess.com"]
[Date "2023.10.17"]
[Round "1"]
[White "HajiyevKanan"]
[Black "Jospem"]
[Result "0-1"]
[WhiteElo "2527"]
[BlackElo "3103"]
[TimeControl "180+1"]
[EndTime "8:05:44 PDT"]
[Termination "Jospem won on time"]

1. d4 {[%clk 0:03:00.9]} 1... Nf6 {[%clk 0:02:59.9]} 2. Nf3 {[%clk 0:02:59.8]}
2... e6 {[%clk 0:03:00.3]} 3. c4 {[%clk 0:02:59.5]} 3... Bb4+ {[%clk 0:03:00.5]}
4. Bd2 {[%clk 0:02:59.5]} 4... c5 {[%clk 0:03:01.1]} 5. e3 {[%clk 0:02:58.7]}
5... b6 {[%clk 0:03:01.2]} 6. Bd3 {[%clk 0:02:55.6]} 6... Bb7 {[%clk 0:03:01.3]}
7. O-O {[%clk 0:02:55.8]} 7... O-O {[%clk 0:03:01.7]} 8. Bxb4 {[%clk 0:02:54.9]}
8... cxb4 {[%clk 0:03:02.6]} 9. Nbd2 {[%clk 0:02:55]} 9... a5 {[%clk 0:03:02.5]}
10. Qc2 {[%clk 0:02:51.5]} 10... d6 {[%clk 0:02:58.4]} 11. a3 {[%clk 0:02:49.1]}
11... Na6 {[%clk 0:02:57.8]} 12. Rfc1 {[%clk 0:02:47.7]} 12... h6 {[%clk
0:02:57.5]} 13. Ne4 {[%clk 0:02:43.4]} 13... Rc8 {[%clk 0:02:54.4]} 14. Nxf6+
{[%clk 0:02:09.9]} 14... Qxf6 {[%clk 0:02:55.3]} 15. Qe2 {[%clk 0:02:10.3]}
15... e5 {[%clk 0:02:31.4]} 16. d5 {[%clk 0:01:37.5]} 16... Nc5 {[%clk
0:02:23.4]} 17. axb4 {[%clk 0:01:32.6]} 17... Nb3 {[%clk 0:02:14.4]} 18. bxa5
{[%clk 0:01:27.8]} 18... bxa5 {[%clk 0:02:15.3]} 19. Rcb1 {[%clk 0:01:24.3]}
19... Nxa1 {[%clk 0:02:12.9]} 20. Rxa1 {[%clk 0:01:25.2]} 20... Ra8 {[%clk
0:02:13.1]} 21. Nd2 {[%clk 0:01:00.5]} 21... Qd8 {[%clk 0:02:12.5]} 22. Qg4
{[%clk 0:00:53.4]} 22... Bc8 {[%clk 0:02:07.3]} 23. Qh5 {[%clk 0:00:48]} 23...
f5 {[%clk 0:02:06.2]} 24. g4 {[%clk 0:00:39.4]} 24... e4 {[%clk 0:02:02.6]} 25.
Bc2 {[%clk 0:00:33.6]} 25... Qf6 {[%clk 0:02:02.6]} 26. Ra2 {[%clk 0:00:29]}
26... Rb8 {[%clk 0:01:59.9]} 27. b3 {[%clk 0:00:26.4]} 27... Qc3 {[%clk
0:01:54]} 28. Nf1 {[%clk 0:00:20.6]} 28... a4 {[%clk 0:01:54.1]} 29. bxa4 {[%clk
0:00:18.3]} 29... Qxc4 {[%clk 0:01:54.1]} 30. gxf5 {[%clk 0:00:07.1]} 30... Qxa2
{[%clk 0:01:36.6]} 31. Bxe4 {[%clk 0:00:06.4]} 31... Qxa4 {[%clk 0:01:37.4]} 32.
f3 {[%clk 0:00:02]} 32... Qe8 {[%clk 0:01:38.2]} 33. Qg4 {[%clk 0:00:01.9]}
33... Qf7 {[%clk 0:01:38.9]} 34. f6 {[%clk 0:00:02.3]} 34... Bxg4 {[%clk
0:01:37.9]} 0-1

[Event "Early-Titled-Tuesday-Blitz-October-17-2023"]
[Site "Chess.com"]
[Date "2023.10.17"]
[Round "1"]
[White "Mystery2007"]
[Black "lamomiajunior"]
[Result "1-0"]
[WhiteElo "2464"]
[BlackElo "2728"]
[TimeControl "180+1"]
[EndTime "8:05:49 PDT"]
[Termination "Mystery2007 won by resignation"]

1. e4 {[%clk 0:02:57.7]} 1... c6 {[%clk 0:02:59.1]} 2. Nf3 {[%clk 0:02:55.4]}
2... d5 {[%clk 0:02:58.3]} 3. d3 {[%clk 0:02:56]} 3... g6 {[%clk 0:02:58.2]} 4.
g3 {[%clk 0:02:51.8]} 4... Bg7 {[%clk 0:02:58.1]} 5. Bg2 {[%clk 0:02:51.8]} 5...
e5 {[%clk 0:02:58.4]} 6. O-O {[%clk 0:02:51.4]} 6... Ne7 {[%clk 0:02:58.8]} 7.
Re1 {[%clk 0:02:51.2]} 7... Nd7 {[%clk 0:02:58.6]} 8. Nbd2 {[%clk 0:02:46.6]}
8... O-O {[%clk 0:02:58.7]} 9. c3 {[%clk 0:02:46.9]} 9... a5 {[%clk 0:02:56.2]}
10. a4 {[%clk 0:02:46.2]} 10... b6 {[%clk 0:02:52.6]} 11. Qc2 {[%clk 0:02:46.4]}
11... Ba6 {[%clk 0:02:50.1]} 12. d4 {[%clk 0:02:30.4]} 12... exd4 {[%clk
0:02:43.6]} 13. cxd4 {[%clk 0:02:29]} 13... Rc8 {[%clk 0:02:44.3]} 14. Qb3
{[%clk 0:02:14.9]} 14... c5 {[%clk 0:02:40.4]} 15. exd5 {[%clk 0:02:09.3]} 15...
c4 {[%clk 0:02:38.6]} 16. Qa3 {[%clk 0:02:06.2]} 16... Nxd5 {[%clk 0:02:38.5]}
17. Ne4 {[%clk 0:01:55.5]} 17... Nb4 {[%clk 0:02:35.9]} 18. Qc3 {[%clk
0:01:47.4]} 18... Nf6 {[%clk 0:02:31]} 19. Bg5 {[%clk 0:01:43.7]} 19... Nxe4
{[%clk 0:02:31]} 20. Rxe4 {[%clk 0:01:39]} 20... Qd6 {[%clk 0:02:24.6]} 21. Be7
{[%clk 0:01:36.3]} 21... Qc6 {[%clk 0:02:24.9]} 22. Ne5 {[%clk 0:01:21.2]} 22...
Qc7 {[%clk 0:02:18.2]} 23. Bxf8 {[%clk 0:01:19.1]} 23... Bxf8 {[%clk 0:02:19.1]}
24. Rf4 {[%clk 0:01:10.8]} 24... f5 {[%clk 0:02:18.6]} 25. Re1 {[%clk
0:00:55.4]} 25... Bh6 {[%clk 0:02:16.7]} 26. Rf3 {[%clk 0:00:51.1]} 26... Bb7
{[%clk 0:02:15.1]} 27. h4 {[%clk 0:00:42.9]} 27... Bxf3 {[%clk 0:02:13.5]} 28.
Bxf3 {[%clk 0:00:43.6]} 28... Bg7 {[%clk 0:02:13.5]} 29. b3 {[%clk 0:00:33.3]}
29... Rd8 {[%clk 0:01:36.9]} 30. bxc4 {[%clk 0:00:24.7]} 30... Bxe5 {[%clk
0:01:34.7]} 31. Rxe5 {[%clk 0:00:20.1]} 31... Qd7 {[%clk 0:01:35.2]} 32. d5
{[%clk 0:00:18.9]} 32... Qxa4 {[%clk 0:01:32.7]} 33. Re7 {[%clk 0:00:18.2]} 1-0

[Event "Early-Titled-Tuesday-Blitz-October-17-2023"]
[Site "Chess.com"]
[Date "2023.10.17"]
[Round "1"]
[White "Doomfist26"]
[Black "AndresDelgado77"]
[Result "1-0"]
[WhiteElo "2632"]
[BlackElo "2329"]
[TimeControl "180+1"]
[EndTime "8:05:49 PDT"]
[Termination "Doomfist26 won on time"]

1. e4 {[%clk 0:03:00.9]} 1... e6 {[%clk 0:02:59.6]} 2. d4 {[%clk 0:03:00.2]}
2... d5 {[%clk 0:02:58.3]} 3. Nc3 {[%clk 0:03:00.6]} 3... Nf6 {[%clk 0:02:57.5]}
4. e5 {[%clk 0:03:00.9]} 4... Nfd7 {[%clk 0:02:57.3]} 5. Nce2 {[%clk 0:03:00.7]}
5... b6 {[%clk 0:02:55.9]} 6. Nf3 {[%clk 0:03:00]} 6... Ba6 {[%clk 0:02:53.1]}
7. g3 {[%clk 0:03:00.3]} 7... c5 {[%clk 0:02:52.3]} 8. c3 {[%clk 0:03:00.1]}
8... Nc6 {[%clk 0:02:51.8]} 9. Bg2 {[%clk 0:03:00.5]} 9... Rc8 {[%clk
0:02:50.3]} 10. O-O {[%clk 0:03:00.4]} 10... cxd4 {[%clk 0:02:37.3]} 11. cxd4
{[%clk 0:02:47.2]} 11... Nb4 {[%clk 0:02:34]} 12. a3 {[%clk 0:02:39.5]} 12...
Nd3 {[%clk 0:02:14.2]} 13. Bg5 {[%clk 0:02:28]} 13... f6 {[%clk 0:02:03.5]} 14.
exf6 {[%clk 0:02:25.7]} 14... gxf6 {[%clk 0:02:01.7]} 15. Qa4 {[%clk 0:02:04.1]}
15... Bc4 {[%clk 0:01:49.2]} 16. Bh4 {[%clk 0:01:34]} 16... Nxb2 {[%clk
0:01:39.7]} 17. Qc2 {[%clk 0:01:32.6]} 17... Nd3 {[%clk 0:00:30.3]} 18. Rfd1
{[%clk 0:01:31.7]} 18... Bb5 {[%clk 0:00:19.9]} 19. Qb1 {[%clk 0:01:31.7]} 19...
Nxf2 {[%clk 0:00:05.9]} 20. Kxf2 {[%clk 0:01:15.3]} 20... Bxe2 {[%clk 0:00:04]}
21. Kxe2 {[%clk 0:01:16.2]} 21... Be7 {[%clk 0:00:03.4]} 22. Kf2 {[%clk
0:01:16.3]} 22... O-O {[%clk 0:00:02.7]} 23. Re1 {[%clk 0:01:16.9]} 23... f5
{[%clk 0:00:01.8]} 24. Rxe6 {[%clk 0:01:15.3]} 1-0

[Event "Early-Titled-Tuesday-Blitz-October-17-2023"]
[Site "Chess.com"]
[Date "2023.10.17"]
[Round "1"]
[White "Mikhail_Golubev"]
[Black "AleksandrAleksikov"]
[Result "1-0"]
[WhiteElo "2580"]
[BlackElo "2244"]
[TimeControl "180+1"]
[EndTime "8:05:49 PDT"]
[Termination "Mikhail_Golubev won by resignation"]

1. e4 {[%clk 0:02:36.9]} 1... c5 {[%clk 0:02:56.4]} 2. Nf3 {[%clk 0:02:35.7]}
2... d6 {[%clk 0:02:56.3]} 3. d4 {[%clk 0:02:34.8]} 3... Nf6 {[%clk 0:02:56]} 4.
Nc3 {[%clk 0:02:34.2]} 4... cxd4 {[%clk 0:02:54.5]} 5. Nxd4 {[%clk 0:02:35.1]}
5... a6 {[%clk 0:02:54.2]} 6. Bc4 {[%clk 0:02:34.9]} 6... e6 {[%clk 0:02:53.7]}
7. O-O {[%clk 0:02:34.7]} 7... b5 {[%clk 0:02:48.9]} 8. Bb3 {[%clk 0:02:34.3]}
8... Qd7 {[%clk 0:02:38.5]} 9. a4 {[%clk 0:02:24.5]} 9... b4 {[%clk 0:02:34.7]}
10. a5 {[%clk 0:02:14.3]} 10... Qb7 {[%clk 0:02:26]} 11. Na4 {[%clk 0:02:13]}
11... Nbd7 {[%clk 0:02:23.8]} 12. f3 {[%clk 0:02:05.8]} 12... Nc5 {[%clk
0:02:09.1]} 13. Nxc5 {[%clk 0:01:55.1]} 13... dxc5 {[%clk 0:02:08.1]} 14. Ne2
{[%clk 0:01:43.5]} 14... Bd7 {[%clk 0:01:54.4]} 15. c4 {[%clk 0:01:42.7]} 15...
Bc6 {[%clk 0:01:47.5]} 16. Ba4 {[%clk 0:01:40.4]} 16... Rd8 {[%clk 0:01:45.7]}
17. Bxc6+ {[%clk 0:01:31.5]} 17... Qxc6 {[%clk 0:01:44.8]} 18. Qc2 {[%clk
0:01:28.4]} 18... Bd6 {[%clk 0:01:42.6]} 19. Bf4 {[%clk 0:01:21.1]} 19... Bxf4
{[%clk 0:01:15.3]} 20. Nxf4 {[%clk 0:01:22]} 20... O-O {[%clk 0:00:53.6]} 21. e5
{[%clk 0:01:06.3]} 21... Nd7 {[%clk 0:00:52]} 22. Nd3 {[%clk 0:01:05.9]} 22...
Qc7 {[%clk 0:00:49.9]} 23. Rfd1 {[%clk 0:00:57.1]} 23... Nxe5 {[%clk 0:00:44.1]}
24. Nf2 {[%clk 0:00:42.2]} 24... Nc6 {[%clk 0:00:35.5]} 25. Ne4 {[%clk
0:00:42.2]} 25... Nd4 {[%clk 0:00:34.2]} 1-0

[Event "Early-Titled-Tuesday-Blitz-October-17-2023"]
[Site "Chess.com"]
[Date "2023.10.17"]
[Round "1"]
[White "Aygehovit1992"]
[Black "Roedor"]
[Result "1-0"]
[WhiteElo "2691"]
[BlackElo "2412"]
[TimeControl "180+1"]
[EndTime "8:05:52 PDT"]
[Termination "Aygehovit1992 won by resignation"]

1. e4 {[%clk 0:02:44.7]} 1... e5 {[%clk 0:02:53.2]} 2. Nf3 {[%clk 0:02:42.1]}
2... Nc6 {[%clk 0:02:51.8]} 3. Bc4 {[%clk 0:02:41.3]} 3... Bc5 {[%clk
0:02:51.5]} 4. d3 {[%clk 0:02:40.9]} 4... Nf6 {[%clk 0:02:51.1]} 5. Bg5 {[%clk
0:02:40.3]} 5... h6 {[%clk 0:02:51.1]} 6. Bh4 {[%clk 0:02:40.4]} 6... Be7 {[%clk
0:02:51.3]} 7. a4 {[%clk 0:02:35.5]} 7... a5 {[%clk 0:02:50.3]} 8. Nc3 {[%clk
0:02:35.7]} 8... d6 {[%clk 0:02:50.2]} 9. h3 {[%clk 0:02:33]} 9... O-O {[%clk
0:02:50]} 10. g4 {[%clk 0:02:32.5]} 10... Be6 {[%clk 0:02:49.8]} 11. Rg1 {[%clk
0:02:26.9]} 11... Nh7 {[%clk 0:02:48.8]} 12. Bxe7 {[%clk 0:02:24.8]} 12... Nxe7
{[%clk 0:02:49.7]} 13. h4 {[%clk 0:02:22.8]} 13... Bxc4 {[%clk 0:02:46.9]} 14.
dxc4 {[%clk 0:02:23.7]} 14... Ng6 {[%clk 0:02:46.6]} 15. g5 {[%clk 0:02:24.4]}
15... h5 {[%clk 0:02:39.2]} 16. Nd2 {[%clk 0:02:13.3]} 16... Nf4 {[%clk
0:02:37.8]} 17. Nd5 {[%clk 0:02:12.5]} 17... g6 {[%clk 0:02:31.7]} 18. Nxf4
{[%clk 0:02:11.6]} 18... exf4 {[%clk 0:02:32.6]} 19. Qf3 {[%clk 0:02:12.2]}
19... f6 {[%clk 0:02:09]} 20. gxf6 {[%clk 0:02:09.6]} 20... Qxf6 {[%clk
0:02:09.9]} 21. Qxh5 {[%clk 0:02:05.6]} 21... Kg7 {[%clk 0:01:50.6]} 22. O-O-O
{[%clk 0:02:00.7]} 22... Rae8 {[%clk 0:01:38.7]} 23. Qxa5 {[%clk 0:01:58.7]}
23... Ra8 {[%clk 0:01:33.5]} 24. Qb4 {[%clk 0:01:49.8]} 24... c5 {[%clk
0:01:33.1]} 25. Qxb7+ {[%clk 0:01:46.4]} 25... Kh8 {[%clk 0:01:33.4]} 26. e5
{[%clk 0:01:36.4]} 26... Qxe5 {[%clk 0:01:27.6]} 27. Rde1 {[%clk 0:01:35.3]}
27... Rfb8 {[%clk 0:01:02.4]} 28. Qxb8+ {[%clk 0:01:31.1]} 28... Rxb8 {[%clk
0:01:01.9]} 29. Rxe5 {[%clk 0:01:31.8]} 29... dxe5 {[%clk 0:01:02.8]} 30. Rxg6
{[%clk 0:01:31.7]} 30... Re8 {[%clk 0:00:56.2]} 31. Ne4 {[%clk 0:01:30.8]} 31...
Rd8 {[%clk 0:00:53]} 32. a5 {[%clk 0:01:29.5]} 32... Rd4 {[%clk 0:00:53]} 33.
Nd6 {[%clk 0:01:24.2]} 33... Nf8 {[%clk 0:00:47.8]} 34. Rf6 {[%clk 0:01:20]}
34... Kg7 {[%clk 0:00:45.1]} 35. Ne8+ {[%clk 0:01:19.7]} 35... Kg8 {[%clk
0:00:43.4]} 36. a6 {[%clk 0:01:20.2]} 36... Rxc4 {[%clk 0:00:41.9]} 37. b3
{[%clk 0:01:20.2]} 37... Rd4 {[%clk 0:00:40]} 38. a7 {[%clk 0:01:20.2]} 38...
Rd8 {[%clk 0:00:40.2]} 39. Nc7 {[%clk 0:01:20.1]} 39... Kg7 {[%clk 0:00:39.2]}
40. Rxf8 {[%clk 0:01:19.9]} 40... Kxf8 {[%clk 0:00:35.4]} 41. Ne6+ {[%clk
0:01:19.8]} 1-0